Workbook

Sheet 汇总
A1: 种植业、地方优势特色农产品、农业设施保险汇总表（2025.9-2025.11）
A2: 申请单位（业务章）： | Q2: 审核单位（盖章）：
A3: 险种名称 | B3: 承保农户数（户次） | C3: 承保数量（亩/头） | D3: 单位保额（元/亩、头） | E3: 费率 | F3: 单位保险费（元/亩、头） | G3: 总保险费（元） | H3: 保费构成 | R3: 农户已缴保费（元） | S3: 申请补贴（元）
H4: 中央财政 | J4: 省级财政 | L4: 设区市财政 | N4: 县（市、区）财政 | P4: 农户自缴
H5: 比例 | I5: 金额（元） | J5: 比例 | K5: 金额（元） | L5: 比例 | M5: 金额（元） | N5: 比例 | O5: 金额（元） | P5: 比例 | Q5: 金额（元）
A6: 江苏省地方财政补贴性设施大棚保险 | B6: 2 | C6: 491.00 | D6: 5000/1000 | E6: 1.7%/18% 2.7%/18% | F6: 265/315 | G6: 132165.00 | H6: 0% | I6: 0.00 | J6: 0% | K6: 0.00 | L6: 0.00 | M6: 0.00 | N6: 90% | O6: 118948.5 | P6: 10% | Q6: 13216.50 | R6: 13216.50 | S6: 118948.5
A7: 江苏省地方财政补贴性棚内作物种植保险 | B7: 1 | C7: 41.00 | D7: 4000.00 | E7: 6.0% | F7: 240.00 | G7: 9840.00 | H7: 0% | I7: 0.00 | J7: 0% | K7: 0.00 | L7: 0.00 | M7: 0.00 | N7: 80% | O7: 7872 | P7: 20% | Q7: 1968.00 | R7: 1968.00 | S7: =O7+K7+I7 -> 7872.00
A8: 合计 | B8: =SUM(B6:B7) -> 3.00 | C8: =SUM(C6:C7) -> 532.00 | G8: =SUM(G6:G7) -> 142005.00 | I8: =SUM(I6:I7) -> 0.00 | K8: =SUM(K6:K7) -> 0.00 | O8: =SUM(O6:O7) -> 126820.50 | Q8: =SUM(Q6:Q7) -> 15184.50 | R8: =SUM(R6:R7) -> 15184.50 | S8: =O8+K8+I8 -> 126820.50
A9: 保险公司负责人： 保险公司复核人： 保险公司制表人：

Sheet 设施大棚
A1: 地方优势特色农产品、农业设施保险明细表（险种名称：江苏省地方财政补贴性设施大棚保险 单位保额： 棚膜1000元/亩、钢架5000元/亩 保期：2025.9-2026.10）
A2: 序号 | B2: 乡镇 | C2: 投保人/被保险人 | D2: 种植地址 | E2: 保单号 | F2: 户数 | G2: 数量（亩、头） | H2: 自缴保费合计（元） | I2: 总保费（元） | J2: 各级财政补贴（元） | K2: 汇款日期 | L2: 汇款金额 | M2: 汇款人 | N2: 交易流水号（网银回单） | O2: 备注
A3: 1 | B3: 金沙街道 | C3: 李小娟 | D3: 南通市通州区金沙街道平桥镇村 | E3: ANAJF0388425Q050003K | F3: 1 | G3: 41 | H3: 1,291.5 | I3: 12,915 | J3: 11,623.5 | K3: 2025-09-17 | L3: 1,291.5 | M3: 李小娟 | N3: 2501454920D2
A4: 2 | B4: 金沙街道 | C4: 南通裕隆农业科技有限公司 | D4: 南通市通州区金沙街道金余村 | E4: ANAJF0388425Q050004S | F4: 1 | G4: 450 | H4: 11,925 | I4: 119,250 | J4: 107,325 | K4: 2025-10-27 | L4: 11,925 | M4: 南通裕隆农业科技有限公司 | N4: 250J388663E6 | O4: 南通裕隆农业科技有限公司于2025年9月份在我司投保，实地验标时发现棚架采用的是镀锌钢管材质，其费率比普通钢架大棚低。客户此前按普通钢架大棚汇缴保费14175元，在告知客户后原路退还多汇缴保费2250元，现实际汇缴保费11925元。
B7: 合计 | F7: =SUM(F3:F6) -> 2 | G7: =SUM(G3:G6) -> 491.00 | H7: =SUM(H3:H6) -> 13216.50 | I7: =SUM(I3:I6) -> 132165.00 | J7: =SUM(J3:J6) -> 118948.50 | L7: =SUM(L3:L6) -> 13216.50

Sheet 棚内作物
A1: 地方优势特色农产品、农业设施保险明细表（险种名称：江苏省地方财政补贴性棚内作物种植保险 单位保额：4000元/亩 保期：2025.9-2026.9）
A2: 序号 | B2: 乡镇 | C2: 投保人/被保险人 | D2: 种植地址 | E2: 保单号 | F2: 户数 | G2: 数量（亩、头） | H2: 自缴保费合计（元） | I2: 总保费（元） | J2: 各级财政补贴（元） | K2: 汇款日期 | L2: 汇款金额 | M2: 汇款人 | N2: 交易流水号（网银回单） | O2: 备注
A3: 1 | B3: 金沙街道 | C3: 李小娟 | D3: 南通市通州区金沙街道平桥镇村 | E3: ANAJF0387225Q050002U | F3: 1 | G3: 41 | H3: 1,968 | I3: 9,840 | J3: 7,872 | K3: 2025-09-17 | L3: 1,968 | M3: 李小娟 | N3: 2501289880D2
B6: 合计 | F6: =SUM(F3:F5) -> 1 | G6: =SUM(G3:G5) -> 41.00 | H6: =SUM(H3:H5) -> 1968.00 | I6: =SUM(I3:I5) -> 9840.00 | J6: =SUM(J3:J5) -> 7872.00 | L6: =SUM(L3:L5) -> 1968.00
